fUST/lending_fUST_20240322
["ID","MTS","AMOUNT","RATE_DAILY","PERIOD"]
[320044904,1711111863596,-3951.14,0.00030136,2]
[320044905,1711111863606,-1143.78,0.00030136,2]
[320044906,1711111863616,-500.0,0.00030136,2]
[320044907,1711111863625,-500.0,0.00030136,2]
[320044908,1711111863635,-500.0,0.00030136,2]
[320044909,1711111863644,-500.0,0.00030136,2]
[320044910,1711111863653,-500.0,0.00030136,2]
[320044911,1711111863662,-232.51884084,0.00030136,2]
[320044912,1711111863672,-500.0,0.00030136,2]
[320044913,1711111863682,-500.0,0.00030136,2]
[320044914,1711111863691,-500.0,0.00030136,2]
[320044915,1711111863700,-1472.91,0.00030136,2]
[320044916,1711111863711,-500.0,0.00030136,2]
[320044917,1711111863721,-500.0,0.00030136,2]
[320044918,1711111863730,-500.0,0.00030136,2]
[320044919,1711111863752,-39504.62,0.00030136,2]
[320044920,1711111863765,-501.1,0.00030136,2]
[320044921,1711111863775,-2677.19,0.00030136,2]
[320044922,1711111863785,-3007.49,0.00030136,2]
[320044923,1711111863795,-1327.74,0.00030136,2]
[320044924,1711111863806,-7203.91,0.00030136,2]
[320044925,1711111863815,-3691.34,0.00030136,2]
[320044926,1711111863825,-500.0,0.00030136,2]
[320044927,1711111863835,-37676.17,0.00030136,2]
[320044928,1711111863845,-569.34,0.00030136,2]
[320044929,1711111863855,-746.78,0.00030136,2]
[320044930,1711111863865,-500.0,0.00030136,2]
[320044931,1711111863874,-500.0,0.00030136,2]
[320044932,1711111863884,-2250.74,0.00030136,2]
[320044933,1711111863894,-500.0,0.00030136,2]
[320044934,1711111863904,-526.24,0.00030136,2]
[320044935,1711111863913,-500.0,0.00030136,2]
[320044936,1711111863923,-3013.87,0.00030136,2]
[320044937,1711111863933,-8462.19,0.00030136,2]
[320044938,1711111863943,-594.2940873,0.00030136,2]
[320044939,1711111863953,-500.0,0.00030136,2]
[320044940,1711111863963,-500.0,0.00030136,2]
[320044941,1711111863973,-887.09,0.00030136,2]
[320044942,1711111863982,-500.0,0.00030136,2]
[320044943,1711111863995,-306.0,0.00030326,2]
[320044944,1711111864004,-153.0,0.00030411,2]
[320044945,1711111864014,-159.2676642,0.0003044,2]
[320044946,1711111864024,-153.0,0.0003044,2]
[320044947,1711111864034,-3263.22576854,0.00030542,2]
[320044948,1711111864044,-800.0,0.000306,3]
[320044949,1711111864055,-2000.0,0.000306,3]
[320044950,1711111864065,-2000.0,0.000306,3]
[320044951,1711111864076,-400.0,0.000306,3]
[320044952,1711111864086,-166.666666,0.00030603,2]
[320044953,1711111864097,-153.0,0.00030626,2]
[320044954,1711111864108,-153.0,0.00030626,2]
[320044955,1711111864118,-153.0,0.00030626,2]
[320044956,1711111864129,-201.8484782,0.00030626,2]
[320044957,1711111864140,-201.8484782,0.00030626,2]
[320044958,1711111864151,-500.0,0.00030684,2]
[320044959,1711111864161,-500.0,0.00030684,2]
[320044960,1711111864171,-500.0,0.00030684,2]
[320044961,1711111864181,-500.0,0.00030684,2]
[320044962,1711111864192,-1018.12,0.00030684,2]
[320044963,1711111864202,-540.48,0.00030684,2]
[320044964,1711111864212,-767.28,0.00030684,2]
[320044965,1711111864222,-500.0,0.00030684,2]
[320044966,1711111864232,-500.0,0.00030684,2]
[320044967,1711111864245,-500.0,0.00030684,2]
[320044968,1711111864259,-500.0,0.00030684,2]
[320044969,1711111864268,-500.0,0.00030684,2]
[320044970,1711111864278,-500.0,0.00030684,2]
[320044971,1711111864288,-500.0,0.00030684,2]
[320044972,1711111864298,-500.0,0.00030684,2]
[320044973,1711111864308,-500.0,0.00030684,2]
[320044974,1711111864318,-500.0,0.00030684,2]
[320044975,1711111864329,-745.25,0.00030684,2]
[320044976,1711111864340,-1050.15,0.00030684,2]
[320044977,1711111864349,-259.15378988,0.00030684,30]
[320044978,1711111864359,-822.63,0.00030684,2]
[320044979,1711111864507,-521.77,0.00030684,2]
[320044980,1711111864517,-500.0,0.00030684,2]
[320044981,1711111864527,-500.0,0.00030684,2]
[320044982,1711111864538,-500.0,0.00030684,2]
[320044983,1711111864548,-500.0,0.00030684,2]
[320044984,1711111864559,-500.0,0.00030684,2]
[320044985,1711111864569,-500.0,0.00030684,2]
[320044986,1711111864578,-500.0,0.00030684,2]
[320044987,1711111864588,-151.0,0.00030684,2]
[320044988,1711111864598,-500.0,0.00030684,2]
[320044989,1711111864607,-500.0,0.00030684,2]
[320044990,1711111864617,-822.04,0.00030684,2]
[320044991,1711111864626,-765.25,0.00030684,2]
[320044992,1711111864635,-483.96581288,0.00030684,2]
[320044993,1711111864644,-522.7,0.00030684,2]
[320044994,1711111864654,-500.0,0.00030684,2]
[320044995,1711111864663,-500.0,0.00030684,2]
[320044996,1711111864672,-395.91513467,0.00030684,2]
[320044997,1711111864681,-500.0,0.00030684,2]
[320044998,1711111864692,-2819.12,0.00030684,2]
[320044999,1711111864701,-551.95,0.00030684,2]
[320045000,1711111864710,-1059.31,0.00030684,2]
[320045001,1711111864719,-1138.93,0.00030684,2]
[320045002,1711111864729,-403.39055599,0.00030684,2]
[320045003,1711111864738,-500.0,0.00030684,2]
[320045004,1711111864749,-166.34391731,0.00030684,2]
[320045005,1711111864758,-500.0,0.00030684,2]
[320045006,1711111864767,-1081.36,0.00030684,2]
[320045007,1711111864777,-500.0,0.00030684,2]
[320045008,1711111864787,-500.0,0.00030684,2]
[320045009,1711111864796,-1909.77,0.00030684,2]
[320045010,1711111864806,-500.0,0.00030684,2]
[320045011,1711111864816,-3328.14,0.00030684,2]
[320045012,1711111864826,-500.0,0.00030684,2]
[320045013,1711111864835,-500.0,0.00030684,2]
[320045014,1711111864845,-500.0,0.00030684,2]
[320045015,1711111864854,-1933.42,0.00030684,2]
[320045016,1711111864863,-697.43,0.00030684,2]
[320045017,1711111864872,-2814.01,0.00030684,2]
[320045018,1711111864881,-609.02,0.00030684,2]
[320045019,1711111864890,-701.09,0.00030684,2]
[320045020,1711111864898,-500.0,0.00030684,2]
[320045021,1711111864907,-2894.22,0.00030684,2]
[320045022,1711111864916,-871.84,0.00030684,2]
[320045023,1711111864925,-500.0,0.00030684,2]
[320045024,1711111864934,-516.37168215,0.00030684,2]
[320045025,1711111864943,-500.0,0.00030684,2]
[320045026,1711111864952,-500.0,0.00030684,2]
[320045027,1711111864961,-500.0,0.00030684,2]
[320045028,1711111864970,-1479.79,0.00030684,2]
[320045029,1711111864979,-500.0,0.00030684,2]
[320045030,1711111864988,-940.37,0.00030684,2]
[320045031,1711111864999,-4303.45,0.00030684,2]
[320045032,1711111865008,-501.72279813,0.00030684,2]
[320045033,1711111865017,-500.0,0.00030684,2]
[320045034,1711111865027,-500.0,0.00030684,2]
[320045035,1711111865037,-632.84,0.00030684,2]
[320045036,1711111865047,-500.0,0.00030684,2]
[320045037,1711111865058,-504.94,0.00030684,2]
[320045038,1711111865069,-500.0,0.00030684,2]
[320045039,1711111865079,-728.64,0.00030684,2]
[320045040,1711111865090,-500.0,0.00030684,2]
[320045041,1711111865100,-500.0,0.00030684,2]
[320045042,1711111865111,-519.63,0.00030684,2]
[320045043,1711111865120,-500.0,0.00030684,2]
[320045044,1711111865131,-586.56,0.00030684,2]
[320045045,1711111865141,-500.0,0.00030684,2]
[320045046,1711111865151,-502.14253907,0.00030684,2]
[320045047,1711111865162,-504.54346755,0.00030684,2]
[320045048,1711111865173,-501.22912965,0.00030684,2]
[320045049,1711111865182,-882.68,0.00030684,2]
[320045050,1711111865192,-501.10663735,0.00030684,2]
[320045051,1711111865203,-500.0,0.00030684,2]
[320045052,1711111865212,-500.0,0.00030684,2]
[320045053,1711111865223,-501.54142219,0.00030684,2]
[320045054,1711111865233,-1163.15,0.00030684,2]
[320045055,1711111865243,-516.59,0.00030684,2]
[320045056,1711111865253,-224.7373622,0.00030684,2]
[320045057,1711111865262,-627.89,0.00030684,2]
[320045058,1711111865272,-158.36715322,0.00030684,2]
[320045059,1711111865282,-352.49416645,0.00030684,2]
[320045060,1711111865292,-500.0,0.00030684,2]
[320045061,1711111865302,-502.09908919,0.00030684,2]
[320045062,1711111865312,-599.18782755,0.00030684,2]
[320045063,1711111865323,-501.58335445,0.00030684,2]
[320045064,1711111865334,-593.01,0.00030684,2]
[320045066,1711111865344,-501.90478215,0.00030684,2]
[320045067,1711111865355,-500.0,0.00030684,2]
[320045068,1711111865365,-500.0,0.00030684,2]
[320045069,1711111865375,-606.25564696,0.00030684,2]
[320045070,1711111865385,-501.30230205,0.00030684,2]
[320045071,1711111865395,-543.78,0.00030684,2]
[320045072,1711111865406,-500.0,0.00030684,2]
[320045073,1711111865417,-500.0,0.00030684,2]
[320045074,1711111865427,-593.17,0.00030684,2]
[320045075,1711111865437,-946.09,0.00030684,2]
[320045076,1711111865447,-500.0,0.00030684,2]
[320045077,1711111865457,-2447.47,0.00030684,2]
[320045078,1711111865468,-500.0,0.00030684,2]
[320045079,1711111865478,-500.0,0.00030684,2]
[320045080,1711111865488,-500.0,0.00030684,2]
[320045081,1711111865504,-560.61,0.00030684,2]
[320045082,1711111865514,-2700.82,0.00030684,2]
[320045083,1711111865526,-500.0,0.00030684,2]
[320045084,1711111865536,-2015.68,0.00030684,2]
[320045085,1711111865547,-2908.47,0.00030684,2]
[320045086,1711111865557,-12394.08,0.00030684,2]
[320045087,1711111865567,-500.0,0.00030684,2]
[320045088,1711111865577,-500.0,0.00030684,2]
[320045089,1711111865586,-2967.04,0.00030684,2]
[320045090,1711111865596,-3908.24,0.00030684,2]
[320045091,1711111865607,-500.0,0.00030684,2]
[320045092,1711111865617,-500.0,0.00030684,2]
[320045093,1711111865627,-500.0,0.00030684,2]
[320045094,1711111865637,-500.0,0.00030684,2]
[320045095,1711111865646,-500.0,0.00030684,2]
[320045096,1711111865655,-7010.86,0.00030684,2]
[320045097,1711111865665,-3562.59,0.00030684,2]
[320045098,1711111865674,-798.72,0.00030684,2]
[320045099,1711111865683,-5003.73,0.00030684,2]
[320045100,1711111865693,-1138.64,0.00030684,2]
[320045101,1711111865702,-620.82,0.00030684,2]
[320045102,1711111865712,-500.0,0.00030684,2]
[320045103,1711111865721,-574.95937404,0.00030684,2]
[320045104,1711111865731,-674.43,0.00030684,2]
[320045105,1711111865740,-443.86633735,0.00030684,2]
[320045106,1711111865752,-28754.89,0.00030684,2]
[320045107,1711111865761,-3444.81,0.00030684,2]
[320045108,1711111865771,-749.25,0.00030684,2]
[320045109,1711111865781,-500.0,0.00030684,2]
[320045110,1711111865791,-2023.32,0.00030684,2]
[320045111,1711111865801,-512.81,0.00030684,2]
[320045112,1711111865810,-1405.19,0.00030684,2]
[320045113,1711111865820,-763.48,0.00030684,2]
[320045114,1711111865830,-757.09,0.00030684,2]
[320045115,1711111865840,-7621.78,0.00030684,2]
[320045116,1711111865850,-619.42858792,0.00030684,2]
[320045117,1711111865859,-500.0,0.00030684,2]
[320045118,1711111865869,-534.93257802,0.00030684,2]
[320045119,1711111865879,-500.0,0.00030684,2]
[320045120,1711111865889,-1000.0,0.00030684,2]
[320045121,1711111865898,-2763.71,0.00030684,2]
[320045122,1711111865922,-346.191971,0.00030684,2]
[320045123,1711111866141,-153.808029,0.00030684,2]
[320045124,1711111866152,-176.65024773,0.00030684,2]
[320045125,1711111866162,-459.10934415,0.00030684,2]
[320045126,1711111866175,-42.5347041,0.00030684,2]
[320045127,1711111866185,-403.22502853,0.00030684,2]
[320045128,1711111866562,-500.0,0.00028493,2]
[320045129,1711111866572,-500.0,0.00029041,2]
[320045130,1711111866583,-500.0,0.00029041,2]
[320045131,1711111866594,-500.0,0.00029589,2]
[320045132,1711111866604,-500.0,0.00029589,2]
[320045133,1711111866615,-943.95,0.00030136,2]
[320045134,1711111866625,-13.40562127,0.00030136,2]
[320045135,1711111866637,-486.59437873,0.00030136,2]
[320045136,1711111866647,-500.0,0.00030136,2]
[320045137,1711111866657,-96.77497147,0.00030684,2]
[320045138,1711111866667,-535.08,0.00030684,2]
[320045139,1711111866677,-500.0,0.00030684,2]
[320045140,1711111866688,-763.4,0.00030684,2]
[320045141,1711111866698,-500.0,0.00030684,2]
[320045142,1711111866708,-500.0,0.00030684,2]
[320045143,1711111866717,-500.0,0.00030684,2]
[320045144,1711111866727,-500.0,0.00030684,2]
[320045145,1711111866737,-632.84,0.00030684,2]
[320045146,1711111866749,-500.0,0.00030684,2]
[320045147,1711111866759,-3951.14,0.00030684,2]
[320045148,1711111866768,-1143.78,0.00030684,2]
[320045149,1711111866900,-500.0,0.00030684,2]
[320045150,1711111866912,-500.0,0.00030684,2]
[320045151,1711111866923,-500.0,0.00030684,2]
[320045152,1711111866934,-500.0,0.00030684,2]
[320045153,1711111866944,-500.0,0.00030684,2]
[320045154,1711111866954,-500.0,0.00030684,2]
[320045155,1711111866966,-500.0,0.00030684,2]
[320045156,1711111866977,-500.0,0.00030684,2]
[320045157,1711111866996,-1472.91,0.00030684,2]
[320045158,1711111867007,-500.0,0.00030684,2]
[320045159,1711111867021,-500.0,0.00030684,2]
[320045160,1711111867032,-516.89654527,0.00030684,2]
[320045161,1711111867044,-39504.62,0.00030684,2]
[320045162,1711111867058,-501.1,0.00030684,2]
[320045163,1711111867070,-2677.19,0.00030684,2]
[320045164,1711111867081,-3007.49,0.00030684,2]
[320045165,1711111867094,-1327.74,0.00030684,2]
[320045166,1711111867105,-7203.91,0.00030684,2]
[320045167,1711111867116,-500.0,0.00030684,2]
[320045168,1711111867127,-37676.17,0.00030684,2]
[320045169,1711111867137,-569.34,0.00030684,2]
[320045170,1711111867153,-3691.34,0.00030684,2]
[320045171,1711111867163,-746.78,0.00030684,2]
[320045172,1711111867182,-502.34938608,0.00030684,2]
[320045173,1711111867196,-500.0,0.00030684,2]
[320045174,1711111867207,-2250.74,0.00030684,2]
[320045175,1711111867218,-500.0,0.00030684,2]
[320045176,1711111867229,-526.24,0.00030684,2]
[320045177,1711111867239,-500.0,0.00030684,2]
[320045178,1711111867250,-3013.87,0.00030684,2]
[320045179,1711111867260,-8462.19,0.00030684,2]
[320045180,1711111867271,-500.0,0.00030684,2]
[320045181,1711111867281,-500.0,0.00030684,2]
[320045182,1711111867299,-887.09,0.00030684,2]
[320045183,1711111867309,-500.0,0.00030684,2]
[320045184,1711111867319,-943.95,0.00030684,2]
[320045185,1711111867330,-500.0,0.00030684,2]
[320045186,1711111867349,-522.82320032,0.00030684,2]
[320045187,1711111867360,-182.055641,0.00030823,2]
[320045188,1711111867370,-170.869594,0.00030823,2]
[320045189,1711111867381,-153.0,0.00030849,2]
[320045190,1711111867391,-153.0,0.00030849,2]
[320045191,1711111867400,-153.0,0.00030849,2]
[320045192,1711111867423,-153.0,0.00030849,2]
[320045193,1711111867433,-153.0,0.00030849,2]
[320045194,1711111867443,-153.0,0.00030849,2]
[320045195,1711111867455,-153.0,0.00030849,2]
[320045196,1711111867465,-153.0,0.00030849,2]
[320045197,1711111867476,-7714.39605189,0.00031,3]
[320045198,1711111867486,-187.69965055,0.00031,2]
[320045199,1711111867498,-1951.56616901,0.00031,2]
[320045200,1711111867510,-1271.0,0.00031,120]
[320045201,1711111867521,-500.0,0.00031,5]
[320045202,1711111867531,-153.0,0.00031041,2]
[320045203,1711111867543,-153.0,0.00031041,2]
[320045204,1711111867554,-153.0,0.00031041,2]
[320045205,1711111867564,-153.0,0.00031041,2]
[320045206,1711111867574,-153.0,0.00031041,2]
[320045207,1711111867585,-153.0,0.00031041,2]
[320045208,1711111867597,-303.0,0.00031232,7]
[320045209,1711111867607,-301.0,0.00031232,7]
[320045210,1711111867618,-300.0,0.00031232,7]
[320045211,1711111867629,-500.0,0.00031232,2]
[320045212,1711111867639,-500.0,0.00031232,2]
[320045213,1711111867650,-509.59610627,0.00031232,2]
[320045214,1711111867665,-500.0,0.00031232,2]
[320045215,1711111867677,-1018.12,0.00031232,2]
[320045216,1711111867688,-540.48,0.00031232,2]
[320045217,1711111867698,-767.28,0.00031232,2]
[320045218,1711111867708,-500.0,0.00031232,2]
[320045219,1711111867720,-500.0,0.00031232,2]
[320045220,1711111867730,-500.0,0.00031232,2]
[320045221,1711111867742,-500.0,0.00031232,2]
[320045222,1711111867755,-500.0,0.00031232,2]
[320045223,1711111867765,-500.0,0.00031232,2]
[320045224,1711111867776,-630.85833321,0.00031232,2]
[320045225,1711111867787,-500.0,0.00031232,2]
[320045226,1711111867798,-745.25,0.00031232,2]
[320045227,1711111867809,-1050.15,0.00031232,2]
[320045228,1711111867819,-822.63,0.00031232,2]
[320045229,1711111867830,-521.77,0.00031232,2]
[320045230,1711111867840,-500.0,0.00031232,2]
[320045231,1711111867850,-500.0,0.00031232,2]
[320045232,1711111867859,-500.0,0.00031232,2]
[320045233,1711111867869,-500.0,0.00031232,2]
[320045234,1711111867878,-151.0,0.00031232,2]
[320045235,1711111867888,-500.0,0.00031232,2]
[320045236,1711111867897,-822.04,0.00031232,2]
[320045237,1711111867906,-765.25,0.00031232,2]
[320045238,1711111867916,-522.7,0.00031232,2]
[320045239,1711111867925,-500.0,0.00031232,2]
[320045240,1711111867935,-2819.12,0.00031232,2]
[320045241,1711111867944,-551.95,0.00031232,2]
[320045242,1711111867954,-1059.31,0.00031232,2]
[320045243,1711111867964,-1138.93,0.00031232,2]
[320045244,1711111867973,-500.0,0.00031232,2]
[320045245,1711111867983,-1081.36,0.00031232,2]
[320045246,1711111867993,-500.0,0.00031232,2]
[320045247,1711111868003,-500.0,0.00031232,2]
[320045248,1711111868013,-1909.77,0.00031232,2]
[320045249,1711111868022,-3328.14,0.00031232,2]
[320045250,1711111868032,-500.0,0.00031232,2]
[320045251,1711111868042,-500.0,0.00031232,2]
[320045252,1711111868052,-1933.42,0.00031232,2]
[320045253,1711111868061,-697.43,0.00031232,2]
[320045254,1711111868071,-2814.01,0.00031232,2]
[320045255,1711111868080,-609.02,0.00031232,2]
[320045256,1711111868090,-701.09,0.00031232,2]
[320045257,1711111868100,-2894.22,0.00031232,2]
[320045258,1711111868109,-871.84,0.00031232,2]
[320045259,1711111868119,-500.0,0.00031232,2]
[320045260,1711111868129,-500.0,0.00031232,2]
[320045261,1711111868139,-1479.79,0.00031232,2]
[320045262,1711111868149,-500.0,0.00031232,2]
[320045263,1711111868159,-940.37,0.00031232,2]
[320045264,1711111868168,-4303.45,0.00031232,2]
[320045265,1711111868178,-500.0,0.00031232,2]
[320045266,1711111868188,-500.0,0.00031232,2]
[320045267,1711111868198,-632.84,0.00031232,2]
[320045268,1711111868207,-452.52073159,0.00031232,2]
[320045269,1711111868217,-504.94,0.00031232,2]
[320045270,1711111868226,-500.0,0.00031232,2]
[320045271,1711111868236,-728.64,0.00031232,2]
[320045272,1711111868245,-500.0,0.00031232,2]
[320045273,1711111868255,-519.63,0.00031232,2]
[320045274,1711111868265,-500.0,0.00031232,2]
[320045275,1711111868274,-586.56,0.00031232,2]
[320045276,1711111868283,-500.0,0.00031232,2]
[320045277,1711111868293,-882.68,0.00031232,2]
[320045278,1711111868302,-500.0,0.00031232,2]
[320045279,1711111868311,-1163.15,0.00031232,2]
[320045280,1711111868320,-516.59,0.00031232,2]
[320045281,1711111868331,-627.89,0.00031232,2]
[320045282,1711111868341,-500.0,0.00031232,2]
[320045283,1711111868350,-593.01,0.00031232,2]
[320045284,1711111868359,-500.0,0.00031232,2]
[320045285,1711111868369,-543.78,0.00031232,2]
[320045286,1711111868380,-500.0,0.00031232,2]
[320045287,1711111868390,-500.0,0.00031232,2]
[320045288,1711111868399,-593.17,0.00031232,2]
[320045289,1711111868408,-946.09,0.00031232,2]
[320045290,1711111868417,-500.0,0.00031232,2]
[320045291,1711111868427,-2447.47,0.00031232,2]
[320045292,1711111868436,-500.0,0.00031232,2]
[320045293,1711111868446,-560.61,0.00031232,2]
[320045294,1711111868455,-2700.82,0.00031232,2]
[320045295,1711111868465,-500.0,0.00031232,2]
[320045296,1711111868474,-2015.68,0.00031232,2]
[320045297,1711111868483,-2908.47,0.00031232,2]
[320045298,1711111868493,-12394.08,0.00031232,2]
[320045299,1711111868507,-500.0,0.00031232,2]
[320045300,1711111868518,-2967.04,0.00031232,2]
[320045301,1711111868527,-3908.24,0.00031232,2]
[320045302,1711111868537,-500.0,0.00031232,2]
[320045303,1711111868548,-500.0,0.00031232,2]
[320045304,1711111868558,-7010.86,0.00031232,2]
[320045305,1711111868569,-3562.59,0.00031232,2]
[320045306,1711111868580,-798.72,0.00031232,2]
[320045307,1711111868593,-5003.73,0.00031232,2]
[320045308,1711111868603,-1138.64,0.00031232,2]
[320045309,1711111868613,-620.82,0.00031232,2]
[320045310,1711111868623,-500.0,0.00031232,2]
[320045311,1711111868635,-674.43,0.00031232,2]
[320045312,1711111868645,-28754.89,0.00031232,2]
[320045313,1711111868654,-3444.81,0.00031232,2]
[320045314,1711111868664,-749.25,0.00031232,2]
[320045315,1711111868673,-2023.32,0.00031232,2]
[320045316,1711111868682,-1405.19,0.00031232,2]
[320045317,1711111868693,-763.48,0.00031232,2]
[320045318,1711111868702,-757.09,0.00031232,2]
[320045319,1711111868712,-7621.78,0.00031232,2]
[320045320,1711111868722,-500.0,0.00031232,2]
[320045321,1711111868732,-1000.0,0.00031232,2]
[320045322,1711111868741,-2763.71,0.00031232,2]
[320045323,1711111868753,-500.0,0.00031232,2]
[320045324,1711111868762,-535.08,0.00031232,2]
[320045325,1711111868771,-763.4,0.00031232,2]
[320045326,1711111868781,-500.0,0.00031232,2]
[320045327,1711111868790,-500.0,0.00031232,2]
[320045328,1711111868800,-632.84,0.00031232,2]
[320045329,1711111868809,-3951.14,0.00031232,2]
[320045330,1711111868818,-1143.78,0.00031232,2]
[320045331,1711111868831,-500.0,0.00031232,2]
[320045332,1711111868840,-500.0,0.00031232,2]
[320045333,1711111868849,-500.0,0.00031232,2]
[320045334,1711111868859,-500.0,0.00031232,2]
[320045335,1711111868868,-1472.91,0.00031232,2]
[320045336,1711111868884,-500.0,0.00031232,2]
[320045337,1711111868894,-39504.62,0.00031232,2]
[320045338,1711111868904,-501.1,0.00031232,2]
[320045339,1711111868914,-2677.19,0.00031232,2]
[320045340,1711111868924,-3007.49,0.00031232,2]
[320045341,1711111868933,-1327.74,0.00031232,2]
[320045342,1711111868942,-7203.91,0.00031232,2]
[320045343,1711111868952,-37676.17,0.00031232,2]
[320045344,1711111868962,-569.34,0.00031232,2]
[320045345,1711111868971,-3691.34,0.00031232,2]
[320045346,1711111868981,-746.78,0.00031232,2]
[320045347,1711111868990,-500.0,0.00031232,2]
[320045348,1711111869001,-2250.74,0.00031232,2]
[320045349,1711111869011,-526.24,0.00031232,2]
[320045350,1711111869020,-500.0,0.00031232,2]
[320045351,1711111869029,-3013.87,0.00031232,2]
[320045352,1711111869039,-8462.19,0.00031232,2]
[320045353,1711111869049,-558.62127513,0.00031232,2]
[320045354,1711111869059,-500.0,0.00031232,2]
[320045355,1711111869068,-887.09,0.00031232,2]
[320045356,1711111869078,-500.0,0.00031232,2]
[320045357,1711111869087,-943.95,0.00031232,2]
[320045358,1711111869097,-2000.0,0.000315,2]
[320045359,1711111869107,-153.0,0.00031507,2]
[320045360,1711111869117,-153.0,0.00031507,2]
[320045361,1711111869127,-153.0,0.00031507,2]
[320045362,1711111869136,-153.0,0.00031507,2]
[320045363,1711111869148,-153.0,0.00031507,2]
[320045364,1711111869158,-153.0,0.00031507,2]
[320045365,1711111869167,-153.0,0.00031507,2]
[320045366,1711111869177,-153.0,0.00031507,2]
[320045367,1711111869189,-153.0,0.00031507,2]
[320045368,1711111869199,-153.0,0.00031507,2]
[320045369,1711111869294,-2000.0,0.0003151,2]
[320045370,1711111869315,-2000.0,0.0003152,2]
[320045371,1711111869326,-2000.0,0.0003153,2]
[320045372,1711111869335,-2000.0,0.0003154,2]
[320045373,1711111869345,-2000.0,0.0003155,2]
[320045374,1711111869354,-2000.0,0.0003156,2]
[320045375,1711111869364,-2000.0,0.0003157,2]
[320045376,1711111869377,-2000.0,0.0003158,2]
[320045377,1711111869388,-2000.0,0.0003159,2]
[320045378,1711111869400,-2000.0,0.000316,2]
[320045379,1711111869411,-2000.0,0.0003161,2]
[320045380,1711111869421,-2000.0,0.0003162,2]
[320045381,1711111869431,-2000.0,0.0003163,2]
[320045382,1711111869442,-2000.0,0.0003164,2]
[320045383,1711111869452,-2000.0,0.0003165,2]
[320045384,1711111869462,-2000.0,0.0003166,2]
[320045385,1711111869472,-2000.0,0.0003167,2]
[320045386,1711111869481,-2000.0,0.0003168,2]
[320045387,1711111869491,-2000.0,0.0003169,2]
[320045388,1711111869506,-2000.0,0.000317,2]
[320045389,1711111869516,-2000.0,0.0003171,2]
[320045390,1711111869526,-2000.0,0.0003172,2]
[320045391,1711111869535,-2000.0,0.0003173,2]
[320045392,1711111869551,-156.0,0.0003174,35]
[320045393,1711111869560,-2000.0,0.0003174,2]
[320045394,1711111869570,-156.0,0.0003175,35]
[320045395,1711111869579,-2000.0,0.0003175,2]
[320045396,1711111869589,-156.0,0.0003176,35]
[320045397,1711111869599,-2000.0,0.0003176,2]
[320045398,1711111869615,-158.44018112,0.0003176,5]
[320045399,1711111869625,-2000.0,0.0003177,2]
[320045400,1711111869635,-500.0,0.0003178,2]
[320045401,1711111869645,-500.0,0.0003178,2]
[320045402,1711111869655,-500.0,0.0003178,2]
[320045403,1711111869665,-1018.12,0.0003178,2]
[320045404,1711111869674,-540.48,0.0003178,2]